bitfinex-derivatives/quotes_SOLF0:USTF0_20251025
["timestamp","ask_amount","ask_price","bid_price","bid_amount"]
[1761416750392,2.8,193.09,193.07,2.64]
[1761416750994,2.81,193.08,193.07,2.64]
[1761416751202,6.62792484,193.08,193.07,2.64]
[1761416751396,2.81,193.08,193.07,2.64]
[1761416753902,2.81,193.08,193.06,65.44]
[1761416755102,2.81,193.08,193.06,62.8]
[1761416756107,2.81,193.08,193.05,62.8]
[1761416756502,2.81,193.08,193.04,57.30628885]
[1761416756703,2.81,193.08,193.05,62.8]
[1761416756899,2.81,193.08,193.04,57.30628885]
[1761416757104,2.81,193.08,193.04,117.46628885]
[1761416757403,2.81,193.08,193.05,2.64]
[1761416761514,11.02934758,193.1,193.05,2.64]
[1761416761713,3.81675146,193.09,193.05,2.64]
[1761416762616,6.53675146,193.09,193.05,2.64]
[1761416762812,2.72,193.09,193.05,2.64]
[1761416763505,6.53709974,193.09,193.05,2.64]
[1761416763710,3.81709974,193.08,193.05,2.64]
[1761416764314,2.72,193.09,193.05,2.64]
[1761416764713,6.53709974,193.09,193.05,2.64]
[1761416765017,6.53709974,193.08,193.05,2.64]
[1761416765222,2.72,193.08,193.05,2.64]
[1761416766110,6.53264241,193.08,193.05,2.64]
[1761416766318,2.72,193.08,193.05,2.64]
[1761416767226,6.53311359,193.08,193.05,2.64]
[1761416767520,2.72,193.1,193.05,2.64]
[1761416767820,6.53366595,193.09,193.05,2.64]
[1761416768120,3.81366595,193.08,193.05,2.64]
[1761416769222,2.72,193.09,193.05,2.64]
[1761416769516,3.81510909,193.08,193.05,2.64]
[1761416769715,2.72,193.09,193.05,2.64]
[1761416769919,3.81510909,193.08,193.05,2.64]
[1761416770220,2.72,193.09,193.05,2.64]
[1761416770516,3.81540893,193.08,193.05,2.64]
[1761416770718,2.72,193.09,193.05,2.64]
[1761416770918,3.81540803,193.08,193.05,2.64]
[1761416771220,2.79,193.08,193.05,2.64]
[1761416774120,4.49276344,193.11,193.05,2.64]
[1761416774416,51.59765584,193.54,193.05,2.64]
[1761416774417,207.16,193.55,193.19,15.53]
[1761416774615,2.34752579,193.54,193.33,5.12752579]
[1761416774815,2.34752579,193.54,193.33,15.12752579]
[1761416775019,63.5,193.53,193.33,15.12752579]
[1761416775219,222.88922242,193.55,193.33,15.12752579]
[1761416775220,63.5,193.52,193.33,15.12752579]
[1761416775528,222.88922242,193.55,193.33,15.12752579]
[1761416775918,222.88922242,193.55,193.37,2.34752579]
[1761416775919,63.52,193.54,193.37,2.34752579]
[1761416776121,222.88922242,193.55,193.37,2.34752579]
[1761416776310,2.79,193.53,193.37,2.34752579]
[1761416777020,2.79,193.54,193.37,2.34752579]
[1761416777222,2.79,193.52,193.37,2.34752579]
[1761416778315,2.79,193.5,193.37,2.34752579]
[1761416778517,2.79,193.5,193.34,2.78]
[1761416779324,2.79,193.48,193.34,2.78]
[1761416780129,2.79,193.48,193.35,2.78]
[1761416783630,2.79,193.48,193.35,10.0]
[1761416783821,2.79,193.48,193.36,2.78]
[1761416784231,63.36,193.47,193.36,2.78]
[1761416784525,63.36,193.46,193.36,2.78]
[1761416784731,2.79,193.45,193.37,2.78]
[1761416785124,2.79,193.44,193.37,2.78]
[1761416785325,63.34,193.43,193.37,2.78]
[1761416785826,2.79,193.44,193.37,2.78]
[1761416786125,2.79,193.47,193.37,2.78]
[1761416786325,207.16,193.55,193.37,2.78]
[1761416786326,66.13,193.46,193.38,2.78]
[1761416786530,66.13,193.45,193.38,2.78]
[1761416786726,63.34,193.44,193.38,2.78]
[1761416787632,2.79,193.43,193.38,2.78]
[1761416791932,2.05,193.43,193.38,2.78]
[1761416792531,2.34752579,193.53,193.39,2.78]
[1761416792832,63.28,193.52,193.4,2.78]
[1761416793438,63.2,193.52,193.4,2.78]
[1761416794125,2.79,193.51,193.4,2.78]
[1761416794632,2.79,193.49,193.4,2.78]
[1761416794934,2.79,193.49,193.41,2.78]
[1761416798133,2.84,193.47,193.41,2.78]
[1761416798330,66.04,193.46,193.41,10.0]
[1761416798537,63.2,193.45,193.42,2.83]
[1761416798733,63.2,193.44,193.42,2.83]
[1761416800333,2.84,193.46,193.42,2.83]
[1761416800334,63.2,193.43,193.42,2.83]
[1761416801033,2.84,193.46,193.42,2.83]
[1761416801237,2.84,193.45,193.42,2.83]
[1761416801535,63.16,193.44,193.42,2.83]
[1761416802338,2.84,193.45,193.42,2.83]
[1761416802635,63.16,193.44,193.42,2.83]
[1761416802839,63.16,193.43,193.42,2.83]
[1761416803736,2.84,193.45,193.42,2.83]
[1761416803946,63.16,193.43,193.42,2.83]
[1761416804135,2.84,193.42,193.41,10.0]
[1761416804530,66.02,193.42,193.41,10.0]
[1761416804742,2.84,193.42,193.41,10.0]
[1761416804944,66.02,193.42,193.41,10.0]
[1761416805244,66.02,193.42,193.41,3.32680726]
[1761416806345,2.84,193.41,193.34,2.83]
[1761416806642,4.33687563,193.39,193.34,2.83]
[1761416807136,2.84,193.39,193.34,2.83]
[1761416814437,2.84,193.38,193.29,2.83]
[1761416818245,2.84,193.38,193.3,2.83]
[1761416819144,2.84,193.38,193.33,4.79102482]
[1761416819342,2.84,193.38,193.33,7.62102482]
[1761416820554,2.84,193.38,193.34,2.63]
[1761416821444,2.77,193.36,193.33,4.79102482]
[1761416821751,2.77,193.36,193.3,7.42102482]
[1761416821952,2.77,193.36,193.31,2.63]
[1761416822354,63.1,193.35,193.31,2.63]
[1761416822554,63.12,193.34,193.31,2.63]
[1761416823846,2.77,193.36,193.31,2.63]
[1761416824248,63.1,193.35,193.31,2.63]
[1761416824448,63.1,193.34,193.31,2.63]
[1761416825857,2.77,193.36,193.31,2.63]
[1761416826045,63.1,193.33,193.31,2.63]
[1761416833262,2.77,193.36,193.31,2.63]
[1761416833464,2.63,193.34,193.31,2.63]
[1761416833964,63.04,193.33,193.31,2.63]
[1761416835458,65.67,193.33,193.31,2.63]
[1761416835869,2.63,193.32,193.29,7.57102482]
[1761416837071,63.04,193.33,193.29,7.57102482]
[1761416839070,1.1,193.32,193.29,7.57102482]
[1761416839572,1.1,193.32,193.3,2.78]
[1761416842070,1.1,193.32,193.28,2.78]
[1761416842472,62.96,193.31,193.28,2.78]
[1761416843468,1.1,193.32,193.28,2.78]
[1761416843672,62.96,193.3,193.28,2.78]
[1761416844175,62.96,193.3,193.28,7.57102482]
[1761416844775,62.96,193.29,193.28,7.57102482]
[1761416846775,1.1,193.32,193.28,7.57102482]
[1761416846978,64.04,193.31,193.28,7.57102482]
[1761416847276,1.1,193.3,193.28,7.57102482]
[1761416850178,1.1,193.3,193.29,4.79102482]
[1761416858385,1.1,193.3,193.29,7.54102482]
[1761416860785,59.06030863,193.31,193.3,2.75]
[1761416861383,60.16030863,193.31,193.3,2.75]
[1761416862181,1.1,193.31,193.3,2.75]
[1761416862388,64.06,193.31,193.3,2.75]
[1761416863086,64.06,193.31,193.3,4.79102482]
[1761416864788,64.06,193.31,193.21,4.6575]
[1761416864789,1.1,193.3,193.26,7.54102482]
[1761416865294,1.1,193.3,193.27,2.75]
[1761416866094,1.1,193.3,193.26,4.79102482]
[1761416866286,1.1,193.3,193.27,2.75]
[1761416867291,1.1,193.3,193.26,4.79102482]
[1761416868294,1.1,193.3,193.25,4.79102482]
[1761416869095,1.1,193.3,193.23,4.79102482]
[1761416869302,1.1,193.3,193.22,4.79102482]
[1761416869593,1.1,193.3,193.22,7.54102482]
[1761416870994,1.1,193.3,193.23,2.75]
[1761416875684,1.1,193.3,193.22,4.79102482]
[1761416877397,1.1,193.3,193.21,7.54102482]
[1761416877795,2.34216371,193.27,193.21,7.54102482]
[1761416878097,2.34216371,193.27,193.22,2.75]
[1761416878098,1.1,193.25,193.22,2.75]
[1761416880805,1.1,193.25,193.2,4.79102482]
[1761416881001,1.1,193.25,193.21,2.66]
[1761416889717,62.86,193.24,193.21,2.66]
[1761416892116,1.1,193.25,193.21,2.66]
[1761416892316,62.86,193.23,193.21,2.66]
[1761416895024,62.86,193.22,193.21,2.66]
[1761416899327,1.1,193.31,193.21,3.7]
[1761416899532,1.1,193.29,193.25,2.64]
[1761416900227,1.1,193.38,193.25,2.64]
[1761416900433,1.1,193.45,193.35,2.64]
[1761416900636,1.1,193.5,193.35,2.64]
[1761416900931,64.28,193.49,193.35,2.64]
[1761416901130,1.1,193.49,193.35,2.64]
[1761416901331,64.28,193.48,193.35,2.64]
[1761416901928,1.1,193.48,193.35,7.294]
[1761416902233,63.16,193.47,193.36,2.34216371]
[1761416902533,63.16,193.46,193.37,2.64]
[1761416908727,64.26,193.46,193.37,2.64]
[1761416909136,1.1,193.46,193.37,2.64]
[1761416909335,63.08,193.45,193.37,2.64]
[1761416910639,1.1,193.52,193.39,2.64]
[1761416910832,63.3,193.51,193.4,2.64]
[1761416911233,64.4,193.51,193.41,2.64]
[1761416912444,1.1,193.5,193.41,2.64]
[1761416914236,63.26,193.49,193.41,2.64]
[1761416914830,64.36,193.49,193.41,2.64]
[1761416918337,1.09,193.56,193.39,18.14]
[1761416918645,63.26,193.55,193.42,2.62]
[1761416918846,1.09,193.54,193.42,2.62]
[1761416919236,63.26,193.53,193.42,2.62]
[1761416920146,63.26,193.53,193.44,2.62]
[1761416921647,63.24,193.52,193.44,2.62]
[1761416922041,1.09,193.54,193.44,2.62]
[1761416922238,63.24,193.53,193.44,2.62]
[1761416922438,1.09,193.54,193.44,2.62]
[1761416922946,63.22,193.53,193.44,2.62]
[1761416923133,1.09,193.54,193.44,2.62]
[1761416923334,63.22,193.53,193.44,2.62]
[1761416923641,1.09,193.54,193.44,2.62]
[1761416923848,63.22,193.52,193.44,2.62]
[1761416924145,1.09,193.54,193.44,2.62]
[1761416924335,64.29,193.53,193.44,2.62]
[1761416924541,1.09,193.53,193.44,2.62]
[1761416924741,64.69562341,193.52,193.44,2.62]
[1761416924940,1.49562341,193.52,193.44,2.62]
[1761416925143,63.22,193.51,193.44,2.62]
[1761416928046,1.49562341,193.52,193.44,2.62]
[1761416928244,63.2,193.51,193.44,2.62]
[1761416928452,1.49562341,193.52,193.44,2.62]
[1761416928747,63.18,193.51,193.44,2.62]
[1761416928940,63.16,193.51,193.44,2.62]
[1761416929146,1.49562341,193.52,193.44,2.62]
[1761416929345,63.18,193.51,193.44,2.62]
[1761416929843,1.49562341,193.52,193.44,2.62]
[1761416930242,2.46,193.51,193.44,2.62]
[1761416931347,7.38562341,193.52,193.44,2.62]
[1761416931847,2.58562341,193.52,193.44,2.62]
[1761416932147,5.04562341,193.52,193.44,2.62]
[1761416932747,7.38562341,193.52,193.44,2.62]
[1761416933244,1.09,193.51,193.44,2.62]
[1761416934746,1.09,193.57,193.45,2.62]
[1761416934953,1.09,193.53,193.46,2.62]
[1761416935749,1.09,193.5,193.46,2.62]
[1761416940553,1.09,193.59,193.46,2.62]
[1761416940751,1.09,193.59,193.49,2.67]
[1761416943451,1.09,193.61,193.5,4.7294544]
[1761416943748,1.09,193.61,193.53,2.67]
[1761416948464,1.09,193.61,193.55,1.49562341]
[1761416948658,1.09,193.61,193.55,4.33562341]
[1761416948960,1.09,193.69,193.61,2.84]
[1761416951760,1.09,193.75,193.61,2.84]
[1761416951964,1.09,193.75,193.64,4.33562341]
[1761416952165,1.09,193.75,193.64,2.84]
[1761416952363,2.58562341,193.75,193.64,2.84]
[1761416952561,1.09,193.73,193.64,2.84]
[1761416952861,1.09,193.72,193.64,2.84]
[1761416953563,1.49562341,193.75,193.57,15.52]
[1761416953564,1.09,193.75,193.63,2.84]
[1761416953768,1.09,193.75,193.64,4.33562341]
[1761416954861,1.09,193.75,193.65,2.84]
[1761416955267,1.09,193.73,193.65,2.84]
[1761416955963,1.09,193.84,193.71,1.49562341]
[1761416956162,4.78841307,193.85,193.71,2.84]
[1761416956163,1.09,193.81,193.71,2.84]
[1761416959167,1.09,193.79,193.71,4.33562341]
[1761416960354,1.09,193.79,193.71,1.49562341]
[1761416960573,1.09,193.85,193.75,2.84]
[1761416961363,1.09,193.83,193.72,4.33562341]
[1761416961863,1.09,193.81,193.72,4.33562341]
[1761416962265,1.09,193.81,193.73,2.84]
[1761416963963,1.49562341,193.9,193.77,4.33562341]
[1761416964169,1.09,193.89,193.77,2.84]
[1761416964468,1.09,193.86,193.77,2.84]
[1761416965361,1.09,193.86,193.78,1.49562341]
[1761416965554,0.89786756,193.96,193.78,1.49562341]
[1761416965756,1.09,193.87,193.78,4.33562341]
[1761416965963,1.09,193.87,193.79,2.84]
[1761416967165,33.04,193.95,193.83,2.84]
[1761416967166,1.09,193.95,193.83,2.84]
[1761416967360,1.09,193.9,193.77,2.84]
[1761416967963,1.09,193.87,193.77,2.84]
[1761416971767,1.49562341,193.93,193.79,2.84]
[1761416971969,1.09,193.92,193.79,2.84]
[1761416972167,1.09,193.92,193.8,2.84]
[1761416973878,1.09,193.92,193.81,2.84]
[1761416975373,1.09,193.9,193.81,2.84]
[1761416976283,1.09,193.96,193.81,2.84]
[1761416976483,1.49562341,193.91,193.81,2.84]
[1761416976677,1.09,193.91,193.81,2.84]
[1761416976874,1.09,193.95,193.83,2.84]
[1761416977584,2.58562341,193.95,193.83,2.84]
[1761416978487,1.09,193.95,193.83,2.84]
[1761416978679,2.58562341,193.95,193.83,2.84]
[1761416979877,206.52,194.01,193.75,95.80559695]
[1761416979878,1.49562341,193.99,193.84,2.79]
[1761416980076,1.08,193.98,193.86,2.79]
[1761416981379,1.08,194.01,193.86,2.79]
[1761416981581,1.49562341,193.99,193.88,2.79]
[1761416981976,2.57562341,193.99,193.88,2.79]
[1761416982284,0.89734664,194.1,193.88,2.79]
[1761416982285,1.08,194.02,193.88,2.79]
[1761416982486,1.08,194.02,193.91,2.79]
[1761416983175,1.08,193.99,193.91,2.79]
[1761416984180,1.08,193.99,193.87,2.79]
[1761416986692,1.08,194.01,193.87,2.79]
[1761416986892,2.32687402,194.02,193.87,2.79]
[1761416986893,1.08,193.99,193.87,2.79]
[1761416987191,1.08,193.97,193.87,2.79]
[1761416989291,1.08,193.97,193.81,2.79]
[1761416990792,1.08,193.93,193.81,2.79]
[1761416992893,1.08,193.98,193.81,2.79]
[1761416995089,1.08,193.98,193.83,2.79]
[1761416996401,1.08,194.0,193.85,2.79]
[1761416997690,1.08,194.0,193.86,2.32687402]
[1761416997891,1.08,194.0,193.87,2.79]
[1761416998106,1.08,194.02,193.87,2.79]
[1761416998901,1.08,194.02,193.87,7.4316]
[1761416999098,1.08,194.02,193.88,2.79]
[1761416999999,1.08,194.02,193.89,2.82]
[1761417001306,1.08,194.0,193.89,2.82]
[1761417002297,1.08,194.0,193.53,573.30769603]
[1761417002298,1.08,194.0,193.84,2.82]
[1761417002494,26.74,193.99,193.84,2.82]
[1761417002698,48.44,193.98,193.84,2.82]
[1761417002900,1.08,193.97,193.84,2.82]
[1761417003114,1.08,193.96,193.84,2.82]
[1761417006403,1.08,193.99,193.84,2.82]
[1761417006707,1.08,193.99,193.83,2.32687402]
[1761417006708,1.08,193.99,193.86,2.82]
[1761417007604,1.08,193.97,193.86,2.82]
[1761417010806,3.40687402,193.91,193.86,2.82]
[1761417012212,1.08,193.9,193.82,2.69]
[1761417014306,1.08,193.89,193.82,2.69]
[1761417014507,3.40687402,193.86,193.78,2.69]
[1761417017518,1.08,193.85,193.78,2.69]
[1761417019321,3.40687402,193.82,193.78,2.69]
[1761417020120,2.32687402,193.82,193.78,2.69]
[1761417020313,1.08,193.81,193.78,2.69]
[1761417020715,3.40687402,193.82,193.78,2.69]
[1761417021414,1.08,193.81,193.71,2.69]
[1761417021613,2.32687402,193.88,193.74,2.69]
[1761417022019,3.40687402,193.88,193.74,2.69]
[1761417022822,1.08,193.93,193.74,2.69]
[1761417023022,2.32687402,193.9,193.75,2.69]
[1761417023322,2.32687402,193.9,193.76,4.7294544]
[1761417023528,2.32687402,193.9,193.77,2.69]
[1761417024917,1.08,193.89,193.77,2.69]
[1761417028917,3.40687402,193.85,193.77,2.69]
[1761417031330,2.32687402,193.85,193.77,2.69]
[1761417031629,1.08,193.84,193.77,2.69]
[1761417034834,4.78841307,193.94,193.77,2.69]
[1761417035044,1.08,193.89,193.77,2.69]
[1761417036535,2.32687402,193.9,193.77,2.69]
[1761417036832,1.08,193.89,193.77,2.69]
[1761417037637,3.40687402,193.91,193.77,2.69]
[1761417038541,1.08,193.9,193.77,2.69]
[1761417038838,2.32687402,193.87,193.77,2.69]
[1761417039431,3.40687402,193.87,193.77,2.69]
[1761417039634,1.08,193.86,193.77,2.69]
[1761417042137,2.32687402,193.87,193.77,2.69]
[1761417042335,3.40687402,193.87,193.77,2.69]
[1761417046849,1.08,193.93,193.79,2.65]
[1761417047149,1.4912853,193.87,193.79,2.65]
[1761417047543,1.4912853,193.84,193.79,2.65]
[1761417047745,1.08,193.88,193.79,2.65]
[1761417047950,1.4912853,193.83,193.79,2.65]
[1761417051852,2.5712853,193.83,193.79,2.65]
[1761417052450,1.4912853,193.8,193.74,4.74577883]
[1761417052655,1.4912853,193.8,193.75,2.65]
[1761417053152,1.4912853,193.82,193.75,2.65]
[1761417056542,4.81573981,193.87,193.75,2.65]
[1761417056750,6.30702511,193.87,193.75,2.65]
[1761417057054,1.4912853,193.87,193.79,2.65]
[1761417057354,1.08,193.89,193.79,2.65]
[1761417057355,1.4912853,193.84,193.79,2.65]
[1761417058643,1.08,193.88,193.79,2.65]
[1761417058848,1.4912853,193.84,193.79,2.65]
[1761417061558,2.5812853,193.84,193.79,2.65]
[1761417061759,4.81573981,193.87,193.79,2.65]
[1761417061760,1.4912853,193.81,193.79,2.65]
[1761417062057,1.4912853,193.81,193.76,2.6]
[1761417062659,2.5812853,193.81,193.76,2.6]
[1761417063758,1.4912853,193.78,193.76,2.6]
[1761417064355,5.90573981,193.85,193.76,2.6]
[1761417064555,1.4912853,193.84,193.76,2.6]
[1761417067962,1.4912853,193.81,193.76,2.6]
[1761417070458,1.08,193.8,193.75,4.74577883]
[1761417070671,1.4912853,193.77,193.72,2.8]
[1761417070866,1.4912853,193.77,193.73,2.8]
[1761417071466,4.81573981,193.84,193.73,2.8]
[1761417071662,1.4912853,193.82,193.73,2.8]
[1761417071862,1.4912853,193.82,193.75,2.8]
[1761417072263,1.4912853,193.82,193.75,4.74577883]
[1761417072454,1.4912853,193.82,193.76,2.8]
[1761417073365,3.12498803,193.85,193.76,2.8]
[1761417073658,1.4912853,193.96,193.84,2.69]
[1761417073858,1.4912853,193.96,193.9,2.69]
[1761417074261,1.4912853,193.96,193.91,2.69]
[1761417075160,2.83,194.0,193.91,2.69]
[1761417075962,2.83,193.97,193.88,7.43132729]
[1761417076165,2.83,193.97,193.88,2.69]
[1761417083768,0.89730036,194.11,193.88,2.69]
[1761417084071,2.83,194.04,193.91,2.69]
[1761417086667,2.83,194.08,193.91,2.69]
[1761417086871,2.83,194.08,193.94,2.69]
[1761417087578,2.83,194.06,193.94,2.69]
[1761417088067,64.78,194.06,193.94,2.69]
[1761417088267,2.83,194.05,193.94,2.69]
[1761417089465,2.83,194.04,193.94,2.69]
[1761417093188,2.83,194.04,193.87,2.69]
[1761417093478,2.83,194.02,193.87,2.69]
[1761417093678,2.83,194.0,193.87,2.69]
[1761417095476,2.83,194.0,193.87,4.6416]
[1761417095779,2.83,194.0,193.88,2.69]
[1761417096770,2.83,194.0,193.89,2.69]
[1761417098884,2.83,194.0,193.91,2.69]
[1761417104987,2.7,193.99,193.91,2.69]
[1761417107094,2.7,193.99,193.88,2.69]
[1761417107095,2.7,193.98,193.88,2.69]
[1761417107393,2.7,193.97,193.88,2.69]
[1761417114408,2.7,193.95,193.88,2.69]
[1761417118004,2.7,193.95,193.87,4.69371736]
[1761417118314,2.7,193.95,193.85,4.69371736]
[1761417118609,2.32714499,193.91,193.85,4.69371736]
[1761417118816,2.7,193.9,193.85,7.38371736]
[1761417120113,2.7,193.9,193.83,4.69371736]
[1761417120314,44.43,193.89,193.82,7.34371736]
[1761417120516,2.63,193.88,193.82,7.34371736]
[1761417121013,2.63,193.88,193.82,2.65]
[1761417122003,2.63,193.88,193.8,4.69371736]
[1761417122212,2.63,193.88,193.77,6.32176972]
[1761417122213,2.63,193.88,193.79,7.34371736]
[1761417122511,2.32714499,193.87,193.79,7.34371736]
[1761417122814,2.63,193.86,193.79,7.34371736]
[1761417124124,2.63,193.86,193.79,2.65]
[1761417124323,2.63,193.86,193.77,4.69371736]
[1761417124510,2.63,193.86,193.79,2.65]
[1761417129514,2.63,193.86,193.76,7.33371736]
[1761417129719,2.63,193.86,193.76,2.64]
[1761417131021,58.2,193.85,193.76,2.64]
[1761417131221,2.62,193.84,193.76,2.64]
[1761417133619,2.32714499,193.82,193.76,2.64]
[1761417133823,4.94714499,193.82,193.76,2.64]
[1761417134225,2.62,193.81,193.76,2.64]
[1761417139622,221.81,193.93,193.76,2.64]
[1761417139623,2.62,193.91,193.76,2.64]
[1761417139824,2.62,193.91,193.8,2.64]
[1761417140019,206.34,193.93,193.81,2.64]
[1761417140225,2.62,193.95,193.81,2.64]
[1761417140424,2.62,193.91,193.81,2.64]
[1761417140825,2.62,193.87,193.78,2.64]
[1761417149436,2.62,193.96,193.78,2.64]
[1761417149740,2.62,193.96,193.82,2.64]
[1761417150133,2.62,193.96,193.82,4.69371736]
[1761417150333,2.62,193.96,193.83,2.64]
[1761417150527,2.62,193.96,193.84,2.64]
[1761417151534,2.62,193.96,193.72,28.08187841]
[1761417151535,2.62,193.88,193.8,2.64]
[1761417153844,4.94714499,193.85,193.77,2.64]
[1761417154743,2.62,193.84,193.77,2.64]
[1761417156336,2.62,193.91,193.8,2.64]
[1761417157640,2.62,193.91,193.81,2.64]
[1761417158237,2.62,193.91,193.81,7.33371736]
[1761417158440,2.62,193.91,193.82,2.59]
[1761417161149,2.62,193.91,193.78,7.28371736]
[1761417161458,2.83,193.87,193.79,2.59]
[1761417167051,2.32714499,193.84,193.78,4.69371736]
[1761417167250,2.83,193.83,193.75,7.28371736]
[1761417167456,2.83,193.83,193.76,2.59]
[1761417170744,1.49205278,193.78,193.76,2.59]
[1761417177868,1.49205278,193.81,193.76,2.59]
[1761417178058,4.32205278,193.81,193.76,2.59]
[1761417185777,1.49205278,193.81,193.76,2.59]
[1761417185973,4.10205278,193.81,193.76,2.59]
[1761417186482,2.61,193.8,193.76,2.59]
[1761417198987,2.61,193.8,193.75,4.74215968]
[1761417199390,2.61,193.8,193.75,7.36215968]
[1761417199692,2.61,193.8,193.75,4.74215968]
[1761417199988,2.61,193.8,193.73,7.36215968]
[1761417200189,2.82,193.78,193.74,2.62]
[1761417200382,4.31205278,193.78,193.74,2.62]
[1761417201588,1.49205278,193.78,193.74,2.62]
[1761417202090,2.82,193.77,193.74,2.62]
[1761417203583,19.96671607,193.87,193.74,2.62]
[1761417203584,2.82,193.81,193.74,2.62]
[1761417203896,2.82,193.81,193.77,2.62]
[1761417204287,2.82,193.81,193.74,4.74215968]
[1761417204288,4.31205278,193.8,193.75,2.62]
[1761417204590,2.82,193.79,193.75,2.62]
[1761417206196,2.82,193.79,193.75,4.74215968]
[1761417206395,2.82,193.87,193.78,6.32287957]
[1761417206695,2.82,193.87,193.82,2.62]
[1761417206891,2.82,193.87,193.83,2.62]
[1761417208593,2.82,193.91,193.83,2.62]
[1761417215792,2.82,193.88,193.8,7.36322695]
[1761417216192,2.82,193.88,193.8,2.62]
[1761417220501,2.67,193.85,193.8,2.62]
[1761417220703,2.67,193.85,193.78,4.74322695]
[1761417220895,2.67,193.85,193.78,7.37322695]
[1761417225401,2.67,193.85,193.78,2.63]
[1761417226202,4.16205278,193.85,193.78,2.63]
[1761417226506,2.67,193.84,193.78,2.63]
[1761417229609,2.67,193.88,193.79,2.63]
[1761417230807,2.67,193.88,193.81,2.63]
[1761417231009,2.67,193.88,193.82,2.63]
[1761417232710,2.67,194.0,193.87,4.74358262]
[1761417232903,2.67,194.0,193.88,2.63]
[1761417238112,2.67,193.99,193.88,2.63]
[1761417243816,2.67,193.99,193.84,2.69]
[1761417245303,2.64,193.97,193.84,2.69]
[1761417246119,2.64,193.95,193.84,2.69]
[1761417249118,2.64,193.95,193.84,7.43358262]
[1761417249321,2.64,193.95,193.85,2.68]
[1761417250723,2.64,193.95,193.86,2.68]
[1761417266232,2.65,193.93,193.86,2.68]
[1761417274139,2.65,193.93,193.86,7.42358262]
[1761417274439,2.65,193.93,193.86,4.74358262]
[1761417274740,2.65,193.93,193.86,7.42358262]
[1761417275130,2.65,193.93,193.86,4.74358262]
[1761417275332,2.65,193.93,193.87,2.68]
[1761417277240,2.65,193.93,193.87,7.42358262]
[1761417278243,2.65,193.93,193.87,4.74358262]
[1761417278545,66.25,193.93,193.87,7.39358262]
[1761417278842,2.87,193.92,193.87,7.39358262]
[1761417279043,2.87,193.92,193.88,2.65]
[1761417293151,2.87,193.92,193.87,4.74358262]